bitfinex/quotes_ETHUSD_20240917
["timestamp","ask_amount","ask_price","bid_price","bid_amount"]
[1726554720821,6.77387,2305.6,2305.1,14.60771895]
[1726554721031,6.77387,2305.6,2305.2,3.37498008]
[1726554721324,6.77387,2305.6,2305.1,14.60771895]
[1726554721483,6.77387,2305.6,2305.2,3.37492898]
[1726554721708,2.4365,2305.6,2305.3,1.34996685]
[1726554721911,2.4365,2305.6,2305.2,4.33785]
[1726554722140,2.4365,2305.6,2305.3,1.34989801]
[1726554722343,2.4365,2305.6,2305.2,6.16598974]
[1726554722554,2.4365,2305.6,2305.3,1.35000249]
[1726554722703,6.7738,2305.6,2305.1,8.4432431]
[1726554722907,6.7738,2305.6,2305.2,3.37524663]
[1726554723138,6.7738,2305.6,2305.1,8.4432431]
[1726554723342,6.7738,2305.6,2305.2,3.37526168]
[1726554723648,2.4365,2305.6,2305.1,8.4432431]
[1726554723814,2.4365,2305.6,2305.2,3.37533153]
[1726554724013,2.4365,2305.6,2305.1,9.65495926]
[1726554724332,2.4365,2305.6,2305.2,3.37522273]
[1726554724541,2.4365,2305.6,2305.3,1.35008909]
[1726554724709,2.4365,2305.6,2305.1,9.65495926]
[1726554724909,2.4365,2305.6,2305.2,4.70798375]
[1726554725106,2.4365,2305.6,2305.3,1.35003839]
[1726554725338,2.4365,2305.6,2305.2,5.67089777]
[1726554725542,2.4365,2305.6,2305.3,1.35002711]
[1726554725741,2.4365,2305.6,2305.2,5.67089777]
[1726554725943,2.4365,2305.6,2305.3,1.35002237]
[1726554726129,2.4365,2305.6,2305.2,5.67089777]
[1726554726329,2.4365,2305.6,2305.3,1.35006011]
[1726554726651,2.4365,2305.6,2305.2,5.67089777]
[1726554726949,2.4365,2305.6,2305.3,1.35006652]
[1726554727159,2.4365,2305.6,2305.2,5.67089777]
[1726554727444,2.4365,2305.6,2305.3,1.35008354]
[1726554727649,2.4365,2305.6,2305.2,5.67089777]
[1726554727844,2.4365,2305.6,2305.3,1.35008233]
[1726554728054,2.4365,2305.6,2305.2,5.67089777]
[1726554728251,2.4365,2305.6,2305.3,1.35009384]
[1726554728462,2.4365,2305.6,2305.2,5.67089777]
[1726554728621,2.4365,2305.6,2305.3,1.35006568]
[1726554728952,2.4365,2305.6,2305.2,5.67089777]
[1726554729251,2.4365,2305.6,2305.3,1.3500869]
[1726554729451,2.4365,2305.6,2305.2,5.67089777]
[1726554729660,6.77382,2305.6,2305.1,8.4432431]
[1726554729829,6.77382,2305.6,2305.2,3.37525525]
[1726554730154,2.4365,2305.6,2305.1,12.7813331]
[1726554730355,4.33739,2305.6,2305.2,3.37533721]
[1726554730556,4.33739,2305.6,2305.1,8.4432431]
[1726554730557,2.4187,2305.4,2305.1,4.1051831]
[1726554730851,3.25067465,2305.4,2305.1,3.2031708]
[1726554731058,2.4187,2305.3,2305.1,3.2031708]
[1726554739459,2.4187,2305.3,2305.1,4.76667734]
[1726554739642,9.68578,2305.7,2305.1,9.10485734]
[1726554739844,9.68578,2305.7,2305.2,1.15209291]
[1726554740421,9.68578,2305.7,2305.3,1.56350654]
[1726554740616,9.68578,2305.7,2305.3,3.85730654]
[1726554741558,3.45355222,2305.8,2305.3,8.2817694]
[1726554741746,3.45355222,2305.8,2305.4,1.36851294]
[1726554742056,3.45355222,2305.8,2305.4,1.43141521]
[1726554742761,7.79047222,2305.8,2305.4,1.43141521]
[1726554743636,7.79047222,2305.8,2305.4,1.36851294]
[1726554743841,7.79047222,2305.8,2305.3,3.85730654]
[1726554744225,7.79047222,2305.8,2305.3,2.2938]
[1726554744543,2.3656,2305.6,2305.2,5.40325]
[1726554744857,2.3656,2305.6,2305.2,4.3379]
[1726554745044,2.3656,2305.6,2305.3,0.08674155]
[1726554746416,2.3656,2305.6,2305.2,4.3379]
[1726554751127,2.3656,2305.6,2305.3,0.08674156]
[1726554751444,2.3656,2305.6,2305.3,1.24817345]
[1726554752037,2.3656,2305.6,2305.3,1.16143189]
[1726554754338,2.3656,2305.6,2305.2,4.3379]
[1726554755553,2.3656,2305.6,2305.3,0.08674108]
[1726554756445,2.3656,2305.6,2305.2,4.3379]
[1726554757184,2.3656,2305.6,2305.3,1.34993576]
[1726554757383,2.3656,2305.6,2305.2,8.67574]
[1726554757675,2.3656,2305.6,2305.3,1.34996736]
[1726554757880,2.3656,2305.6,2305.2,6.14990481]
[1726554758042,2.3656,2305.6,2305.3,1.35034331]
[1726554758237,2.3656,2305.6,2305.2,6.14990481]
[1726554758546,2.3656,2305.6,2305.3,1.35044138]
[1726554758740,2.3656,2305.6,2305.2,6.14990481]
[1726554758938,2.3656,2305.6,2305.3,1.42415945]
[1726554762775,2.3656,2305.6,2305.3,5.84872087]
[1726554763007,5.73615222,2305.8,2305.4,4.33754]
[1726554763182,0.45355222,2305.8,2305.7,1.56350654]
[1726554763488,0.45355222,2305.8,2305.6,4.42381772]
[1726554763687,2.3669,2306.0,2305.7,1.34966084]
[1726554763887,2.3669,2306.0,2305.6,5.76191313]
[1726554764189,2.3669,2306.0,2305.6,10.09908313]
[1726554764395,7.47,2306.1,2305.7,5.90056654]
[1726554764556,7.47,2306.1,2305.7,8.24696654]
[1726554765501,7.47,2306.1,2305.7,3.90990654]
[1726554765867,7.47,2306.1,2305.7,3.99663177]
[1726554766066,7.47,2306.1,2305.7,3.90990654]
[1726554766993,2.4733,2306.0,2305.6,4.33709]
[1726554769278,2.4733,2306.0,2305.6,6.81469]
[1726554771486,2.4733,2306.0,2305.6,4.33709]
[1726554775778,2.4733,2306.0,2305.6,5.59049865]
[1726554775977,2.4733,2306.0,2305.6,9.92764865]
[1726554776212,2.4733,2306.0,2305.6,9.92765865]
[1726554776370,2.4733,2306.0,2305.6,5.59049865]
[1726554789361,2.4733,2306.0,2305.6,4.33709]
[1726554795481,4.33755,2305.5,2305.1,3.2031708]
[1726554795634,2.4495,2305.4,2305.1,7.5413708]
[1726554795839,2.4495,2305.4,2305.2,4.33798]
[1726554796035,2.4495,2305.4,2305.1,9.10487734]
[1726554796533,2.4495,2305.4,2305.1,7.5413708]
[1726554797476,2.4495,2305.4,2305.1,3.2031708]
[1726554804505,2.4495,2305.4,2305.1,4.63771476]
[1726554805695,2.4495,2305.4,2305.1,3.2031708]
[1726554812923,2.4495,2305.4,2305.1,7.5413608]
[1726554815588,2.4495,2305.4,2305.1,11.8795508]
[1726554815886,2.4495,2305.4,2305.1,7.5412508]
[1726554822514,2.4495,2305.4,2305.1,3.2031708]
[1726554825139,2.4495,2305.4,2305.1,4.39117488]
[1726554829939,2.4495,2305.4,2305.1,3.2031708]
[1726554831754,2.4495,2305.4,2305.1,7.62793938]
[1726554832061,2.258,2305.6,2305.1,7.62793938]
[1726554832433,6.59528,2305.6,2305.1,7.62793938]
[1726554833166,6.59528,2305.6,2305.1,11.96603938]
[1726554833448,2.258,2305.6,2305.1,9.43489205]
[1726554834027,2.258,2305.6,2305.2,4.33798]
[1726554840349,2.258,2305.6,2305.3,1.3523389]
[1726554840549,2.258,2305.6,2305.1,14.58824577]
[1726554840786,2.258,2305.6,2305.2,3.38081893]
[1726554840988,2.258,2305.6,2305.3,1.35232757]
[1726554841188,2.258,2305.6,2305.1,8.4432031]
[1726554841363,2.258,2305.6,2305.2,4.28491688]
[1726554841570,2.258,2305.6,2305.3,3.38290458]
[1726554841875,2.258,2305.6,2305.2,0.9020123]
[1726554842083,2.258,2305.6,2305.3,3.3829443]
[1726554842276,2.258,2305.6,2305.2,0.9020123]
[1726554842485,2.258,2305.6,2305.3,3.38308521]
[1726554842653,2.258,2305.6,2305.2,0.9020123]
[1726554842991,2.258,2305.6,2305.3,3.38311338]
[1726554843292,2.258,2305.6,2305.2,0.9020123]
[1726554843491,2.258,2305.6,2305.3,3.38259008]
[1726554843686,2.258,2305.6,2305.2,0.9020123]
[1726554843895,2.258,2305.6,2305.3,3.38258745]
[1726554844100,2.258,2305.6,2305.2,0.9020123]
[1726554844252,2.258,2305.6,2305.3,3.38275288]
[1726554844448,2.258,2305.6,2305.4,1.35310115]
[1726554844757,2.258,2305.6,2305.2,0.9020123]
[1726554844984,2.258,2305.6,2305.3,3.38278397]
[1726554845186,2.258,2305.6,2305.2,0.9020123]
[1726554845498,6.59526,2305.6,2305.3,3.38282577]
[1726554845793,6.59526,2305.6,2305.2,0.9020123]
[1726554846087,6.59526,2305.6,2305.3,3.38298335]
[1726554846293,2.258,2305.6,2305.2,0.9020123]
[1726554846476,2.258,2305.6,2305.3,3.38306648]
[1726554846658,2.258,2305.6,2305.2,0.9020123]
[1726554846994,2.258,2305.6,2305.3,3.3830144]
[1726554847208,2.258,2305.6,2305.2,0.9020123]
[1726554847489,2.258,2305.6,2305.3,3.3829226]
[1726554847688,2.258,2305.6,2305.2,0.9020123]
[1726554847893,2.258,2305.6,2305.3,3.38293703]
[1726554848198,2.258,2305.6,2305.2,0.9020123]
[1726554848378,2.258,2305.6,2305.3,3.38289703]
[1726554848690,2.258,2305.6,2305.2,0.9020123]
[1726554848890,2.258,2305.6,2305.3,3.38280748]
[1726554849184,2.258,2305.6,2305.2,0.9020123]
[1726554849388,2.258,2305.6,2305.3,3.38278032]
[1726554849608,2.258,2305.6,2305.2,0.9020123]
[1726554849762,2.258,2305.6,2305.3,3.38279698]
[1726554849964,2.258,2305.6,2305.4,4.33761]
[1726554850261,7.47,2305.9,2305.7,4.33696]
[1726554850467,7.47,2305.9,2305.6,6.88950916]
[1726554850703,7.47,2305.9,2305.7,3.37972791]
[1726554851006,7.47,2305.9,2305.8,1.35189116]
[1726554851307,2.4173,2306.0,2305.6,12.11023953]
[1726554851508,2.4173,2306.0,2305.7,9.39221794]
[1726554851802,2.4173,2306.0,2305.7,5.9273958]
[1726554852006,2.4173,2306.0,2305.8,1.35111925]
[1726554852205,2.4173,2306.0,2305.7,6.01412421]
[1726554852410,2.4173,2306.0,2305.8,1.37871037]
[1726554852564,6.68747,2306.2,2305.8,1.37871037]
[1726554852761,6.68747,2306.2,2305.7,4.42379841]
[1726554853160,6.68747,2306.2,2305.8,0.0867255]
[1726554853362,2.3512,2306.2,2305.8,0.0867255]
[1726554854400,6.68734,2306.2,2305.7,4.42379407]
[1726554854602,6.68734,2306.2,2305.7,5.88747143]
[1726554854815,6.68734,2306.2,2305.7,5.80074736]
[1726554855171,6.68734,2306.2,2305.7,5.88747147]
[1726554858620,6.68734,2306.2,2305.7,4.37379411]
[1726554862079,6.68734,2306.2,2305.7,4.28707]
[1726554862276,2.3512,2306.2,2305.7,4.37379464]
[1726554864094,6.68738,2306.2,2305.7,4.37379464]
[1726554864724,2.3512,2306.2,2305.7,4.28707]
[1726554865038,6.68735,2306.2,2305.7,4.28707]
[1726554865693,2.3512,2306.2,2305.7,4.28707]
[1726554866225,6.68733,2306.2,2305.7,4.28707]
[1726554867082,2.3512,2306.2,2305.7,1.26276865]
[1726554867284,15.25984278,2306.5,2306.0,5.89989654]
[1726554867509,2.432,2306.4,2306.0,5.89989654]
[1726554867719,2.432,2306.4,2306.0,8.30169654]
[1726554867888,2.432,2306.4,2306.0,8.38841282]
[1726554868509,2.432,2306.4,2306.0,9.2272541]
[1726554869382,3.45418278,2306.5,2306.3,4.33581]
[1726554869383,0.45418278,2306.5,2306.3,4.33581]
[1726554869728,0.45418278,2306.5,2306.4,10.23502654]
[1726554869897,2.2572,2306.9,2306.6,4.33536]
[1726554870099,2.2572,2306.9,2306.6,4.42205253]
[1726554871022,2.2572,2306.9,2306.6,4.33536]
[1726554872731,2.2572,2306.9,2306.5,0.08669266]
[1726554872901,2.2572,2306.9,2306.5,4.42226266]
[1726554873101,2.2572,2306.9,2306.5,5.73512123]
[1726554873841,2.2572,2306.9,2306.5,1.39955123]
[1726554874336,4.33492,2306.9,2306.3,4.33592]
[1726554874523,2.3063,2306.8,2306.3,4.33592]
[1726554875763,6.64136,2306.8,2306.2,12.55073654]
[1726554875943,6.64136,2306.8,2306.3,1.13795265]
[1726554877003,6.64136,2306.8,2306.3,5.47389265]
[1726554878527,2.3063,2306.8,2306.3,5.47389265]
[1726554882549,2.3063,2306.8,2306.3,4.33594]
[1726554884320,2.3063,2306.8,2306.4,4.33575]
[1726554891963,4.33513,2306.8,2306.3,4.33585]
[1726554892125,2.296,2306.7,2306.2,4.33595]
[1726554892324,2.296,2306.7,2306.2,8.67197]
[1726554892564,2.296,2306.6,2306.2,4.33595]
[1726554892768,2.3506,2306.5,2306.1,3.1648]
[1726554892973,2.3506,2306.3,2306.1,3.1648]
[1726554893170,3.019237,2306.2,2306.1,3.1648]
[1726554896462,2.3506,2306.2,2306.1,3.1648]
[1726554908843,2.4279,2306.5,2306.1,3.1648]
[1726554909039,6.76301,2306.8,2306.3,1.56350654]
[1726554909246,2.4279,2306.8,2306.4,4.33576]
[1726554909469,2.4279,2306.8,2306.5,1.56350654]
[1726554909687,2.4279,2307.0,2306.6,9.26056165]
[1726554909856,2.4279,2307.0,2306.6,8.67065]
[1726554910039,2.4279,2307.0,2306.6,4.33527]
[1726554913079,2.4279,2307.0,2306.6,8.67054]
[1726554913319,3.45410068,2307.1,2306.6,5.59499465]
[1726554913485,3.45410068,2307.1,2306.6,10.01694704]
[1726554913782,0.45410068,2307.1,2306.8,6.80778]
[1726554913991,6.70948,2307.4,2306.9,2.40063519]
[1726554914147,2.3755,2307.4,2306.9,6.82202735]
[1726554914352,2.86182688,2307.6,2307.1,8.28090654]
[1726554914661,2.86182688,2307.6,2307.2,0.08667338]
[1726554914978,2.86182688,2307.6,2307.2,4.42081338]
[1726554915281,2.4078,2307.6,2307.2,4.42081338]
[1726554916089,7.33332,2307.7,2307.2,4.42081338]
[1726554916274,2.3767708,2307.8,2307.3,5.98410664]
[1726554916583,6.7099108,2307.8,2307.3,1.56350654]
[1726554916782,6.7099108,2307.8,2307.3,1.65017619]
[1726554916946,2.3767708,2307.8,2307.4,4.33385]
[1726554917560,2.3767708,2307.8,2307.4,5.50197775]
[1726554918199,2.3767708,2307.8,2307.4,1.16812775]
[1726554918363,2.3767708,2307.8,2307.3,5.98422619]
[1726554918566,6.7099208,2307.8,2307.3,1.65017619]
[1726554919211,11.0431608,2307.8,2307.2,4.33411]
[1726554919502,6.7099208,2307.8,2307.3,4.33405]
[1726554919796,6.7099208,2307.8,2307.3,4.42071608]
[1726554920007,6.7099208,2307.8,2307.3,0.08666608]
[1726554920301,11.0431908,2307.8,2307.3,0.08666608]
[1726554920471,8.44926896,2307.8,2307.2,4.33411]
[1726554920874,12.78254896,2307.8,2307.2,4.33411]
[1726554921081,4.33331,2307.7,2307.2,4.33411]
[1726554923202,12.78253896,2307.8,2307.3,0.08666639]
[1726554923403,11.0431908,2307.8,2307.2,5.68857093]
[1726554923898,11.0432208,2307.8,2307.2,5.68857093]
[1726554925273,6.7099208,2307.8,2307.2,5.68857093]
[1726554925566,11.0432208,2307.8,2307.2,5.68857093]
[1726554925995,4.33332,2307.7,2307.2,5.68857093]
[1726554932172,0.11600415,2307.6,2307.2,5.68857093]
[1726554932601,0.11600415,2307.6,2307.2,5.77523787]
[1726554933274,0.11600415,2307.6,2307.2,5.68857093]
[1726554936076,0.11600415,2307.6,2307.3,2.2799]
[1726554936410,4.33332,2307.7,2307.3,3.24340775]
[1726554936576,0.11682441,2307.5,2307.3,2.2799]
[1726554936775,4.33332,2307.7,2307.3,2.2799]
[1726554937000,0.11678682,2307.4,2307.3,2.2799]
[1726554937202,4.33332,2307.7,2307.3,2.2799]
[1726554937408,0.1167835,2307.4,2307.3,2.2799]
[1726554937572,4.33332,2307.7,2307.3,3.09765165]
[1726554937774,0.1167835,2307.4,2307.3,2.2799]
[1726554938409,4.33332,2307.7,2307.3,2.2799]
[1726554938614,0.1167835,2307.4,2307.3,2.2799]
[1726554938822,4.33332,2307.7,2307.3,2.2799]
[1726554938992,0.1167835,2307.4,2307.3,2.2799]
[1726554939178,4.33332,2307.7,2307.3,3.09765165]
[1726554939379,0.1167835,2307.4,2307.3,2.2799]
[1726554939579,4.33332,2307.7,2307.3,2.2799]
[1726554940219,0.11692273,2307.6,2307.3,2.2799]
[1726554944818,0.11692273,2307.6,2307.3,2.36656783]
[1726554946789,0.11692273,2307.6,2307.3,2.2799]
[1726554947190,6.7099208,2307.8,2307.3,2.2799]
[1726554947393,0.11676491,2307.5,2307.3,2.2799]
[1726554947596,6.7099208,2307.8,2307.3,2.2799]
[1726554948103,4.45022048,2307.7,2307.3,2.2799]
[1726554951505,4.45022048,2307.7,2307.3,2.36656826]
[1726554952024,4.45022048,2307.7,2307.3,2.2799]
[1726554955941,0.11686048,2307.7,2307.5,1.56350654]
[1726554956144,0.0383708,2307.8,2307.6,2.44115889]
[1726554956447,0.0383708,2307.8,2307.7,6.78281]
[1726554956650,0.0383708,2307.8,2307.7,11.52086859]
[1726554956802,0.0383708,2307.8,2307.7,16.75619089]
[1726554957201,7.47,2308.3,2308.0,2.2936]
[1726554957501,0.0383708,2308.5,2308.0,3.94374976]
[1726554957709,0.0383708,2308.5,2308.1,0.662635]
[1726554959353,0.0383708,2308.5,2308.3,2.4964]
[1726554960752,0.10925065,2308.4,2308.3,2.4964]
[1726554961053,0.10925065,2308.4,2308.1,0.662635]
[1726554961254,0.10925065,2308.4,2308.2,0.7464752]
[1726554962124,0.10925065,2308.4,2308.2,5.0787952]
[1726554962323,0.10925065,2308.4,2308.3,2.4377]
[1726554963054,0.10925065,2308.4,2308.3,6.85652711]
[1726554963240,0.10925065,2308.4,2308.3,12.538593]
[1726554963446,0.10925065,2308.4,2308.3,16.71981056]
[1726554963655,0.10925065,2308.4,2308.3,16.63317345]
[1726554963946,0.0383708,2308.5,2308.4,10.948]
[1726554964121,0.0383708,2308.5,2308.4,15.87546488]
[1726554964322,0.0383708,2308.5,2308.4,16.4704973]
[1726554964519,0.0383708,2308.5,2308.4,4.89653077]
[1726554964718,0.0383708,2308.5,2308.3,5.68193589]
[1726554964950,0.0383708,2308.5,2308.3,4.33206]
[1726554965710,0.0383708,2308.5,2308.4,4.332]
[1726554966455,0.0383708,2308.5,2308.3,8.66413]
[1726554966853,0.0383708,2308.5,2308.4,5.429253]
[1726554968650,0.0383708,2308.5,2308.4,12.198553]
[1726554971478,0.14074864,2308.5,2308.4,12.198553]
[1726554971629,0.0383708,2308.5,2308.4,12.198553]
[1726554972175,0.14074864,2308.5,2308.4,12.198553]
[1726554972476,0.0383708,2308.5,2308.4,15.57852004]
[1726554972639,0.14074864,2308.5,2308.4,15.57852004]
[1726554972842,0.0383708,2308.5,2308.4,15.57852004]
[1726554973068,0.14074864,2308.5,2308.4,15.57852004]
[1726554973264,0.0383708,2308.5,2308.4,15.57852004]
[1726554973473,0.1408088,2308.5,2308.4,15.57852004]
[1726554973674,0.0383708,2308.5,2308.4,15.57852004]
[1726554973857,0.1408088,2308.5,2308.4,15.57852004]
[1726554974055,0.0383708,2308.5,2308.4,15.57852004]
[1726554974256,0.1410227,2308.5,2308.4,15.57852004]
[1726554974463,0.0383708,2308.5,2308.4,15.57852004]
[1726554974981,0.1410227,2308.5,2308.4,15.57852004]
[1726554975158,0.0383708,2308.5,2308.4,15.57852004]
[1726554975360,0.1410227,2308.5,2308.4,15.57852004]
[1726554976048,0.1410227,2308.5,2308.4,19.91052004]
[1726554977296,0.1410227,2308.5,2308.4,15.57852004]
[1726554977450,0.1410227,2308.5,2308.4,6.7693]
[1726554977763,0.1410227,2308.5,2308.4,4.332]
[1726554979267,0.1410227,2308.5,2308.4,18.89469488]
[1726554979864,0.1410227,2308.5,2308.4,19.44469488]
[1726554980062,0.0383708,2308.5,2308.4,19.44469488]
[1726554980307,0.0383708,2308.5,2308.4,29.15439637]
[1726554980607,0.0383708,2309.2,2309.1,10.97018]
[1726554980803,0.0383708,2309.2,2309.1,14.35014704]
[1726554980957,0.1415249,2309.2,2309.1,14.35014704]
[1726554981157,0.0383708,2309.2,2309.1,16.21826074]
[1726554986171,6.66238,2309.8,2309.2,4.33033]
[1726554986372,2.2688,2309.6,2309.1,4.33069]
[1726554986589,2.2688,2309.6,2309.1,4.33058]
[1726554986884,0.10364679,2309.5,2309.1,4.33057]
[1726554990481,0.10364679,2309.5,2309.1,5.442841]
[1726554992974,2.4986,2309.4,2309.0,4.33087]
[1726554993174,0.10368449,2309.3,2309.0,4.33087]
[1726554995689,0.10368449,2309.3,2308.9,4.33094]
[1726554996418,0.10368449,2309.3,2308.9,8.66191]
[1726554996620,0.10368449,2309.3,2308.9,5.197131]
[1726554999352,0.10368449,2309.3,2308.9,9.528091]
[1726554999487,0.10368449,2309.3,2308.9,4.33094]
[1726555000137,2.428,2309.2,2308.7,7.71128704]
[1726555000431,2.428,2309.2,2308.4,6.70958149]
[1726555000432,6.75906,2308.9,2308.4,6.70958149]
[1726555000633,2.428,2308.9,2308.4,4.33188]
[1726555000926,0.10316703,2308.8,2308.5,4.3318]
[1726555001137,0.10316703,2308.8,2308.5,5.198168]
[1726555001334,0.10316703,2308.8,2308.5,0.866368]
[1726555001519,2.3861,2308.6,2308.2,4.33235]
[1726555001890,0.10276434,2308.5,2308.2,4.33235]
[1726555003651,0.10276434,2308.5,2308.3,1.34513928]
[1726555003822,0.10276434,2308.5,2308.3,0.6582146]
[1726555004145,0.10276434,2308.5,2308.4,4.332]
[1726555004348,2.3991,2308.8,2308.4,5.67715702]
[1726555004652,2.3991,2308.8,2308.4,4.332]
[1726555004810,0.09918402,2308.7,2308.4,5.59994414]
[1726555005008,2.3991,2308.8,2308.4,5.59994414]
[1726555005338,0.09911444,2308.6,2308.4,5.59994414]
[1726555005538,2.3991,2308.8,2308.4,5.59994414]
[1726555005737,0.09904485,2308.5,2308.4,5.59994414]
[1726555006205,2.3991,2308.8,2308.4,5.59994414]
[1726555006402,0.09904485,2308.5,2308.4,5.59994414]
[1726555006606,2.3991,2308.8,2308.4,5.59994414]
[1726555006806,0.09904485,2308.5,2308.4,1.26794414]
[1726555007006,2.3991,2308.8,2308.3,4.9903846]
[1726555007204,0.09904485,2308.5,2308.3,4.9903846]
[1726555007406,11.17002692,2308.8,2308.3,4.9903846]
[1726555007653,11.17002692,2308.8,2308.1,5.23709675]
[1726555007654,0.09897526,2308.4,2308.2,4.33228]
[1726555007834,2.3548,2308.7,2308.2,4.33228]
[1726555008003,0.09890566,2308.3,2308.2,4.33228]
[1726555008359,2.3548,2308.7,2308.1,4.33244]
[1726555008642,2.3548,2308.3,2308.2,0.433244]
[1726555008840,2.3548,2308.3,2308.1,8.66483]
[1726555009042,0.09890566,2308.3,2308.2,4.33237]
[1726555009249,2.4501,2308.5,2308.2,4.33237]
[1726555009423,0.09890566,2308.3,2308.2,4.33237]
[1726555009625,2.4501,2308.5,2308.2,5.198847]
[1726555009825,0.09890566,2308.3,2308.2,5.198847]
[1726555010006,7.33145,2308.7,2308.2,5.198847]
[1726555010007,2.4868,2308.7,2308.3,4.33216]
[1726555010212,0.09911444,2308.6,2308.4,0.7567037]
[1726555010450,0.09911444,2308.6,2308.4,4.33197]
[1726555010654,0.09911444,2308.6,2308.4,4.418603]
[1726555010983,0.09911444,2308.6,2308.4,4.33197]
[1726555011309,0.09911444,2308.6,2308.5,4.33181]
[1726555011545,0.09911444,2308.6,2308.5,5.5361847]
[1726555012053,0.09914995,2308.6,2308.5,5.5361847]
[1726555014409,0.09914995,2308.6,2308.4,4.33197]
[1726555015031,0.09914995,2308.6,2308.4,4.3319]
[1726555015256,0.09914995,2308.6,2308.4,8.6638]
[1726555015471,0.09914995,2308.6,2308.4,4.3319]
[1726555015988,0.09914995,2308.6,2308.4,8.6638]
[1726555016174,0.09914995,2308.6,2308.2,5.198737]
[1726555016344,2.4703,2308.5,2308.0,5.23729675]
[1726555016544,6.80213,2308.5,2308.0,4.33264]
[1726555016744,0.09909844,2308.4,2308.0,4.33264]
[1726555016957,0.09909844,2308.4,2307.8,5.68601845]
[1726555016958,2.363,2308.3,2307.8,5.23766675]
[1726555017160,2.363,2308.3,2307.8,4.33301]
[1726555017375,0.09891581,2308.2,2307.8,8.66602]
[1726555017573,0.09891581,2308.2,2307.8,5.29007768]
[1726555017779,2.363,2308.3,2307.8,5.29007768]
[1726555017928,0.0988462,2308.1,2307.8,5.29007768]
[1726555018135,0.09891581,2308.2,2307.8,5.29007768]
[1726555018383,0.09877659,2308.0,2307.8,5.29007768]
[1726555018677,0.09870697,2307.9,2307.5,7.61119675]
[1726555018976,0.09870697,2307.9,2307.5,4.33364]
[1726555019278,0.09870697,2307.9,2307.7,4.33328]
[1726555019443,0.09870697,2307.9,2307.7,10.93133]
[1726555019642,2.2762,2308.2,2307.7,6.59811]
[1726555019848,2.2762,2308.2,2307.9,4.3329]
[1726555020073,2.2762,2308.2,2307.9,4.33282]
[1726555020378,7.47,2308.3,2308.1,4.3324]
[1726555020579,11.8014,2308.8,2308.1,6.6592]
[1726555020785,2.2714,2308.7,2308.3,4.33206]
[1726555020954,2.2714,2308.9,2308.4,4.80851]
[1726555021155,2.2714,2308.9,2308.4,4.8951414]
[1726555021364,2.2714,2308.9,2308.4,4.80851]
[1726555021935,6.6025,2308.9,2308.4,0.47653]
[1726555022152,2.4256,2308.7,2308.2,4.76551]
[1726555022717,6.75704,2308.7,2308.2,0.43324]
[1726555023510,6.75704,2308.7,2308.2,4.76559]
[1726555023868,7.92360761,2309.1,2308.2,0.43324]
[1726555024070,7.92360761,2309.1,2307.9,2.4656]
[1726555024071,4.33202,2308.4,2307.9,4.33283]
[1726555024970,2.4406,2308.3,2307.7,8.66636]
[1726555025176,6.77279,2308.3,2307.7,8.66637]
[1726555025415,6.77279,2308.3,2307.8,0.866637]
[1726555025573,2.4406,2308.3,2307.8,5.199747]
[1726555025978,4.33247,2308.2,2307.8,0.866637]
[1726555026211,4.33247,2308.2,2307.7,4.33316]
[1726555027702,4.33247,2308.2,2307.7,8.66637]
[1726555027908,6.7728,2308.3,2307.8,4.33312]
[1726555028091,6.7728,2308.3,2307.9,0.866628]
[1726555028417,2.4406,2308.3,2307.9,5.199528]
[1726555029321,3.0,2308.4,2308.0,2.2882]
[1726555029627,6.71892,2308.5,2308.1,1.1820568]
[1726555029825,6.71892,2308.5,2307.9,5.199468]
[1726555030279,6.71892,2308.5,2307.9,5.199458]
[1726555030478,6.71892,2308.5,2307.9,9.532278]
[1726555031322,6.71892,2308.5,2307.9,5.199448]
[1726555031488,6.71892,2308.5,2308.0,0.5199448]
[1726555031841,6.71892,2308.5,2307.9,5.199448]
[1726555033030,2.3917,2308.4,2307.9,5.199448]
[1726555033240,2.3917,2308.4,2308.1,4.33255]
[1726555033559,2.4291,2308.7,2308.2,2.3857]
[1726555033691,2.4291,2308.7,2308.3,5.004015]
[1726555034031,2.4291,2308.7,2308.3,9.336065]
[1726555034190,2.4291,2308.7,2308.4,4.332]
[1726555034395,2.4291,2308.9,2308.5,4.33166]
[1726555034590,2.4291,2308.9,2308.5,5.2652475]
[1726555035729,0.0952267,2308.8,2308.5,5.2652475]
[1726555037741,0.0952267,2308.8,2308.6,0.08662281]
[1726555038031,0.0952267,2308.8,2308.6,0.53518703]
[1726555039206,0.0952267,2308.8,2308.5,5.2652475]
[1726555040405,0.0952267,2308.8,2308.5,9.5969475]
[1726555040606,0.0952267,2308.8,2308.5,8.66336]
[1726555042711,0.0952267,2308.8,2308.5,4.33166]
[1726555043046,0.0952267,2308.8,2308.4,4.33191]
[1726555043245,2.46408793,2308.7,2308.3,4.33208]
[1726555043403,2.3558,2308.7,2308.3,4.33208]
[1726555043739,0.09508751,2308.6,2308.3,4.85574223]
[1726555044250,2.3558,2308.7,2308.3,4.85574223]
[1726555044606,0.09535158,2308.6,2308.3,4.85574223]
[1726555049351,4.33127,2308.8,2308.3,4.85574223]
[1726555049352,2.2935,2308.5,2308.3,4.85574223]
[1726555049532,2.38878198,2308.5,2308.3,8.66417]
[1726555049740,0.09528198,2308.5,2308.3,8.66411]
[1726555049953,2.3917,2308.7,2308.3,8.66411]
[1726555050153,0.0951589,2308.4,2308.3,9.95897193]
[1726555050435,2.3917,2308.7,2308.4,4.33199]
[1726555052928,2.3917,2308.7,2308.3,7.87979193]
[1726555053129,2.3917,2308.7,2308.3,9.95898193]
[1726555053762,2.3917,2308.7,2308.3,4.33203]
[1726555061961,2.3917,2308.7,2308.2,4.3322]
[1726555062154,2.3917,2308.7,2308.3,1.35205843]
[1726555062356,2.3917,2308.7,2308.3,4.33217]
[1726555065665,0.0915702,2308.6,2308.3,4.33217]
[1726555065873,0.0915702,2308.6,2308.3,5.53886123]
[1726555066978,0.0915702,2308.6,2308.3,5.53878123]
[1726555067133,0.0915702,2308.6,2308.4,5.68457219]
[1726555067337,0.0915702,2308.6,2308.4,4.33185]
[1726555067643,0.0915702,2308.6,2308.4,8.66376]